Cogmind - Beta 14 @@@ ROGUE MODE // 2024.10.21 @ 09:29:35 Player: Tereza Result: Destroyed by G-47 Trooper with Particle Gun Performance ------------- Evolutions (3) 1500 Regions Visited (6) 1200 Robots Destroyed (87) 435 Value Destroyed (5463) 5463 Prototype IDs (1) 20 Alien Tech Used (0) 0 Bonus (1719) 1719 TOTAL SCORE: 10337 Bonus ------- High Alert Combat Kills 1092 Follower Combat Kills 447 Entered Garrisons 200 Friendly Fire -20 Cogmind --------- Core Integrity 0/700 Matter 8/300 Energy 71/100 System Corruption 13% Temperature Cool (9) Movement Flying (35) Location -7/Factory Parts ------- > --- POWER (1) -------- (None) > --- PROPULSION (4) --- Surge Thruster > --- UTILITY (6) ------ Advanced Targeting Computer Improved Target Analyzer > --- WEAPON (2) ------- (None) > --- INVENTORY (5) ---- Trap Scanner Hacking Suite Heavy Laser Flak Gun Peak State ------------ > --- POWER ------------ Micro Fission Core > --- PROPULSION ------- Light Treads Armored Treads Advanced Treads Medium Treads > --- UTILITY ---------- Huge Storage Unit Improved Sensor Array Advanced Targeting Computer Improved Target Analyzer Hardened Medium Armor Plating Medium Insulated Plating > --- WEAPON ----------- Advanced Assault Cannon Hardcell Cannon > --- INVENTORY -------- Improved Deuterium Engine Improved Deuterium Engine Light Treads Light Treads Carbon-fiber Leg Carbon-fiber Leg Carbon-fiber Leg Improved VSS Leg Surge Thruster Surge Thruster Small Storage Unit Trap Scanner Improved Sensor Array Improved Signal Interpreter Core Shielding Improved Light Armor Plating Thermal Shield Hacking Suite Relay Coupler [Grunt] Relay Coupler [Hunter] Pulse Rifle Gauss Rifle Hardcell Cannon Heavy Missile Launcher Katana [Rating: 55] Favorites ----------- Power Light Deuterium Engine Engine Light Deuterium Engine Power Core Light Nuclear Core Propulsion Medium Treads Treads Medium Treads Wheel Compact Wheel Flight Unit Surge Thruster Utility Huge Storage Unit Device Improved Sensor Array Storage Huge Storage Unit Processor Advanced Targeting Computer Hackware Hacking Suite Protection Hardened Medium Armor Plating Weapon Gauss Rifle Energy Gun Small Laser Ballistic Gun Gauss Rifle Ballistic Cannon Assault Cannon Launcher Heavy Missile Launcher Build | -11 -10 -9 -8 -7 -7 -7 ------- Run | Yrd Mat Mat Mat Fac Gar Fac Slots Evolved 6 | . . 2 2 2 . . Power . | . . . . . . . Propulsion 2 | . . . 1 1 . . Utility 4 | . . 2 1 1 . . Weapon . | . . . . . . . Parts Attached 82 | 6 9 10 15 2 21 19 Power 11 | 1 1 1 1 . 4 3 Engine 5 | 1 1 1 1 . 1 . Core 6 | . . . . . 3 3 Reactor . | . . . . . . . Propulsion 26 | 2 3 3 5 1 8 4 Treads 21 | 2 1 1 5 1 8 3 Leg . | . . . . . . . Wheel 4 | . 2 2 . . . . Hover . | . . . . . . . Flight 1 | . . . . . . 1 Utility 26 | 1 3 3 7 1 5 6 Device 6 | . . 1 3 . . 2 Storage 3 | 1 2 . . . . . Processor 2 | . . . . . 2 . Hackware 1 | . . . . 1 . . Protection 14 | . 1 2 4 . 3 4 Artifact . | . . . . . . . Weapon 19 | 2 2 3 2 . 4 6 Energy Gun 4 | 1 2 1 . . . . Energy Cannon . | . . . . . . . Ballistic Gun 7 | 1 . 1 1 . 4 . Ballistic Cannon 6 | . . 1 1 . . 4 Launcher 2 | . . . . . . 2 Special Weapon . | . . . . . . . Impact Weapon . | . . . . . . . Slashing Weapon . | . . . . . . . Piercing Weapon . | . . . . . . . Special Melee Weapon . | . . . . . . . Unidentified Prototypes 1 | . . 1 . . . . Parts Lost 31 | . 2 5 3 . 9 12 Power 4 | . 1 1 . . . 2 Propulsion 14 | . 1 3 2 . 4 4 Utility 9 | . . . 1 . 3 5 Weapon 4 | . . 1 . . 2 1 Highest Loss Streak 6 | . 1 2 1 . 3 6 To Critical Strikes . | . . . . . . . Average Slot Usage (%) 97 | . 93 92 95 95 98 97 Engine 5 | . 12 10 9 7 4 2 Core 2 | . . . . . 2 4 Treads 25 | . 26 2 18 28 29 29 Wheel 1 | . . 14 5 . . . Device 4 | . . 9 12 7 1 4 Storage 8 | . 14 11 9 7 7 7 Processor 7 | . . . . . 7 15 Hackware 4 | . . . . 4 7 3 Protection 17 | . 9 21 22 23 18 12 Energy Gun 2 | . 14 5 6 . . . Ballistic Gun 8 | . 14 8 9 7 9 6 Ballistic Cannon 5 | . . 7 2 7 5 7 Peak Build Rating 55 | 6 9 14 36 41 49 55 Average Rating 38 | 4 7 11 27 39 45 49 On Entrance 21 | . 6 8 14 35 41 48 Naked Turns . | . . . . . . . Heaviest Build 117 | 12 88 95 113 113 116 117 Greatest Support 104 | 40 40 32 76 104 104 90 Greatest Overweight (x) 31 | . 3 5 6 1 2 31 Average Overweight (x) 1 | . . 4 4 1 1 1 Largest Inventory Capacity 25 | 8 25 25 25 25 25 25 Average Capacity 23 | 7 9 25 25 25 25 24 Most Carried 25 | 7 10 21 25 25 25 25 Average Carried 22 | 4 8 15 24 23 24 24 Final Capacity 25 | 8 25 25 25 25 25 5 Final Carried 25 | 6 10 21 25 23 25 4 Class Distribution -------------------- 79% | Scavenger-Mutant 20% | Mutant Dominant Class ---------------- Mutant | -10/Materials Mutant | -9/Materials Scavenger-Mutant | -8/Materials Scavenger-Mutant | -7/Factory Scavenger-Mutant | -7/Garrison Scavenger-Mutant | -7/Factory Resources | -11 -10 -9 -8 -7 -7 -7 ----------- Run | Yrd Mat Mat Mat Fac Gar Fac Matter Collected 2601 | 210 156 367 213 . 1040 615 Remotely . | . . . . . . . Salvage Created 3334 | . 446 802 560 . 717 809 Parts 183 | . 22 49 23 . 46 43 Haulers Intercepted 2 | . 1 1 . . . . Recyclers Shooed 2 | . . 1 . . . 1 Parts Field Recycled . | . . . . . . . Retrieved Matter . | . . . . . . . Parts Self-Destructed . | . . . . . . . Prevented . | . . . . . . . Kills | -11 -10 -9 -8 -7 -7 -7 ------- Run | Yrd Mat Mat Mat Fac Gar Fac Combat Hostiles Destroyed 70 | . 9 16 7 . 20 18 Guns 39 | . 9 11 5 . 11 3 Cannons 25 | . . 5 2 . 9 9 AOE 6 | . . . . . . 6 Classes Destroyed 16 | . 2 7 . . 3 4 Worker 3 | . . 2 . . . 1 Builder 2 | . . . . . . 2 Hauler 2 | . 1 1 . . . . Recycler 6 | . . 3 2 . . 1 Operator 1 | . . 1 . . . . Watcher 3 | . . 1 1 . . 1 Swarmer 3 | . . 3 . . . . Cutter 1 | . . . . . 1 . Grunt 34 | . 9 11 4 . 4 6 Brawler 3 | . . . . . . 3 Duelist 7 | . . 1 . . 2 4 Protector 1 | . . . . . . 1 Sentry 13 | . . 1 3 . 7 2 Specialist 1 | . . . . . 1 . Hunter 5 | . . . . . 5 . Programmer 2 | . . . . . . 2 Best Kill Streak 8 | . 2 8 3 . 2 5 Combat Bots Only 5 | . 2 4 2 . 2 5 Max Kills in Single Turn 2 | . 1 2 1 . 2 2 Gunslinging 1 | . . . . . 1 . Exploded 2 | . . . . . . 2 Melee . | . . . . . . . Uniques/NPCs Destroyed . | . . . . . . . Combat | -11 -10 -9 -8 -7 -7 -7 -------- Run | Yrd Mat Mat Mat Fac Gar Fac Hostile Shots Fired 627 | . 67 67 48 . 263 182 Missed 143 | . 9 17 8 . 57 52 Damage Taken 6856 | . 736 561 608 . 2485 2466 Core 999 | . 96 71 118 . 192 522 Absorbed by Shields . | . . . . . . . Redirected to Shielding 64 | . 21 16 26 . 1 . Ignored by Resistances 312 | . . . . . 292 20 Core Remaining (%) 80 | 100 61 82 78 . . . Volleys Fired 302 | . 55 64 30 . 90 63 Largest 2 | . 2 2 2 . 2 2 Hottest 130 | . 85 79 67 . 72 130 Shots Fired 588 | . 109 123 60 . 175 121 Gun 395 | . 109 89 56 . 103 38 Cannon 187 | . . 34 4 . 72 77 Launcher 6 | . . . . . . 6 Special . | . . . . . . . Kinetic 463 | . 55 84 34 . 175 115 Thermal 119 | . 54 39 26 . . . Explosive 6 | . . . . . . 6 Electromagnetic . | . . . . . . . Robot Hit Streak 25 | . 11 15 13 . 25 20 Robot Miss Streak 5 | . 4 2 3 . 5 3 Penetration Max 1 | . . . . . . 1 Secondary Targets 3 | . 2 . . . 1 . Max Gunslinging Chain 1 | . 1 . . . 1 . Shots Hit Robots 399 | . 78 89 44 . 120 68 Core Hits 206 | . 25 30 22 . 82 47 Critical Kills 2 | . . . . . 1 1 Critical Parts Destroyed 2 | . . 1 . . . 1 Critical Strikes 12 | . . 3 . . 3 6 Destroy 4 | . . 1 . . 1 2 Blast 8 | . . 2 . . 2 4 Melee Attacks . | . . . . . . . Impact . | . . . . . . . Slashing . | . . . . . . . Piercing . | . . . . . . . Sneak Attacks . | . . . . . . . Combat Hostiles . | . . . . . . . Follow-up Attacks . | . . . . . . . Damage Inflicted 8472 | . 797 1418 615 . 2279 3363 Guns 3969 | . 797 875 539 . 1304 454 Cannons 3172 | . . 543 76 . 975 1578 Explosions 1329 | . . . . . . 1329 Melee . | . . . . . . . Ramming 2 | . . . . . . 2 Kinetic 6131 | . 306 1098 416 . 2279 2032 Thermal 1010 | . 491 320 199 . . . Explosive 1329 | . . . . . . 1329 Electromagnetic . | . . . . . . . Impact . | . . . . . . . Slashing . | . . . . . . . Piercing . | . . . . . . . Highest Corruption 13 | . . . . . . 13 Average Corruption 12 | . . . . . . 12 Corruption Purged . | . . . . . . . Corruption Blocked . | . . . . . . . Effects 35 | . . . . . . 35 Message Errors 10 | . . . . . . 10 Matter Fused 8 | . . . . . . 8 Heat Flow Errors 3 | . . . . . . 3 Energy Discharges 2 | . . . . . . 2 Parts Rejected 1 | . . . . . . 1 Data Loss (minor) 6 | . . . . . . 6 Data Loss (major) 2 | . . . . . . 2 Misfires 1 | . . . . . . 1 Weapon Failures 2 | . . . . . . 2 Overload Shots . | . . . . . . . Overflow Damage 42 | . . . . . . 42 Projectiles 29 | . . . . . . 29 Explosions 13 | . . . . . . 13 Melee . | . . . . . . . Knockbacks 30 | . . 7 . . 7 16 Impact . | . . . . . . . Kinetic 28 | . . 5 . . 7 16 Secondary 2 | . . 2 . . . . Self-Inflicted Damage 31 | . . . . . 30 1 Shots 1 | . . . . . 1 . Rammed 1 | . . . . . . 1 Targets Rammed 1 | . . . . . . 1 Kicked . | . . . . . . . Crushed . | . . . . . . . Highest Temperature 360 | . 316 130 250 . 285 360 Average Temperature 73 | . 85 58 69 . 61 85 Received Heat Transfer 2127 | . 420 240 324 . 495 648 Effects 5 | . 2 . . . 3 . Shutdowns 1 | . 1 . . . . . Energy Bleed 1 | . . . . . 1 . Interference 2 | . . . . . 2 . Short Circuit 1 | . 1 . . . . . Siege Activations . | . . . . . . . Robots Corrupted . | . . . . . . . Combat Hostiles . | . . . . . . . Parts Fried . | . . . . . . . Impact Corruptions . | . . . . . . . Robots Melted . | . . . . . . . Combat Hostiles . | . . . . . . . Parts Melted 4 | . 3 . 1 . . . Heat Transferred 2285 | . 1110 725 450 . . . Parts Sabotaged . | . . . . . . . Parts Stolen . | . . . . . . . Parts Stripped . | . . . . . . . Power Chain Reactions . | . . . . . . . Alert | -11 -10 -9 -8 -7 -7 -7 ------- Run | Yrd Mat Mat Mat Fac Gar Fac Peak Influence 2587 | . 207 347 267 78 2587 1395 Initial 1358 | . . 24 146 78 54 1358 Average 834 | . 87 146 163 78 1051 1247 Maximum Alert Level 5 | . 1 1 1 . 5 4 Low Security (%) 29 | 100 99 75 76 100 11 . Level 1 8 | . . 24 23 . 8 . Level 2 11 | . . . . . 26 . Level 3 8 | . . . . . 12 13 Level 4 29 | . . . . . 16 86 Level 5 12 | . . . . . 26 . High Security . | . . . . . . . Max Security . | . . . . . . . Squads Dispatched 8 | . 2 1 . . . 5 Investigation . | . . . . . . . Extermination 2 | . . . . . . 2 Reinforcement 3 | . 2 1 . . . . Assault 3 | . . . . . . 3 Garrison . | . . . . . . . Intercept . | . . . . . . . Searches Triggered . | . . . . . . . Construction Impeded . | . . . . . . . Haulers Reinforced . | . . . . . . . Active Scanning Responses . | . . . . . . . Cargo Convoy Interrupts . | . . . . . . . Stealth | -11 -10 -9 -8 -7 -7 -7 --------- Run | Yrd Mat Mat Mat Fac Gar Fac Distress Signals 6 | . 2 2 1 . . 1 Communications Jammed . | . . . . . . . Distress Signals . | . . . . . . . Times Spotted 124 | . 16 25 11 . 31 41 Peak Tracking Total 6 | . 5 6 4 . 3 5 Tactical Retreats 3 | . . 1 . . 1 1 Traps | -11 -10 -9 -8 -7 -7 -7 ------- Run | Yrd Mat Mat Mat Fac Gar Fac Traps Triggered 12 | . . . 1 . 11 . Indirectly . | . . . . . . . Trap Hack Attempts . | . . . . . . . Triggered . | . . . . . . . Disarmed . | . . . . . . . Reprogrammed . | . . . . . . . Reused . | . . . . . . . Traps Extracted . | . . . . . . . Installed . | . . . . . . . Triggered . | . . . . . . . Machines | -11 -10 -9 -8 -7 -7 -7 ---------- Run | Yrd Mat Mat Mat Fac Gar Fac Machines Disabled 18 | . . . . . 17 1 Max in Single Turn 2 | . . . . . 2 1 Garrison Access 1 | . . . . . . 1 Garrison Relay 9 | . . . . . 9 . Phase Generator 1 | . . . . . 1 . Machines Repaired . | . . . . . . . Machines Dismantled . | . . . . . . . Machines Sabotaged . | . . . . . . . Overloaded Fab Kills . | . . . . . . . Hacking | -11 -10 -9 -8 -7 -7 -7 --------- Run | Yrd Mat Mat Mat Fac Gar Fac Machines Accessed 15 | . 3 1 3 1 2 5 Terminals 12 | . 3 1 3 . 2 3 Fabricators 1 | . . . . . . 1 Repair Stations . | . . . . . . . Recycling Units . | . . . . . . . Scanalyzers . | . . . . . . . Garrison Access 2 | . . . . 1 . 1 Total Hacks 29 | . 6 2 7 1 5 8 Successful 15 | . 2 1 6 1 2 3 Failed 14 | . 4 1 1 . 3 5 Catastrophic 1 | . . . . . 1 . Database Lockouts . | . . . . . . . Manual 15 | . 6 2 4 . . 3 Terminals 23 | . 6 2 7 . 5 3 Fabricators 2 | . . . . . . 2 Repair Stations . | . . . . . . . Recycling Units . | . . . . . . . Scanalyzers . | . . . . . . . Garrison Access 4 | . . . . 1 . 3 Terminal Hacks 7 | . . 1 3 . 2 1 Robot Analysis 1 | . . . 1 . . . Emergency Access Points 1 | . . . . . 1 . Alert Level 1 | . . . 1 . . . Unreport Threat 1 | . . 1 . . . . Recall Extermination 1 | . . . . . . 1 Zone Layout 1 | . . . 1 . . . Patrol Navigation 1 | . . . . . 1 . Fabricator Hacks 1 | . . . . . . 1 Build 1 | . . . . . . 1 Repair Station Hacks . | . . . . . . . Recycling Unit Hacks . | . . . . . . . Scanalyzer . | . . . . . . . Garrison Access Hacks 2 | . . . . 1 . 1 Unlock Access 1 | . . . . 1 . . Seal Access 1 | . . . . . . 1 Unauthorized Hacks 5 | . 2 . 3 . . . Terminals 5 | . 2 . 3 . . . Track 2 | . 1 . 1 . . . Botnet 3 | . 1 . 2 . . . Fabricators . | . . . . . . . Repair Stations . | . . . . . . . Recycling Units . | . . . . . . . Scanalyzers . | . . . . . . . Garrison Access . | . . . . . . . Data Cores Recovered . | . . . . . . . Used . | . . . . . . . Hacking Detections 14 | . 3 1 2 1 2 5 Full Trace Events 1 | . . . . . 1 . Feedback Events . | . . . . . . . Feedback Blocked . | . . . . . . . Robot Schematics Acquired . | . . . . . . . Robots Built . | . . . . . . . Authchips . | . . . . . . . Time . | . . . . . . . Total Robot Build Rating . | . . . . . . . Part Schematics Acquired . | . . . . . . . Parts Built 2 | . . . . . . 2 Authchips . | . . . . . . . Time 117 | . . . . . . 117 Total Part Build Rating 14 | . . . . . . 14 Parts Repaired . | . . . . . . . Time . | . . . . . . . Parts Recycled . | . . . . . . . Recycled Matter . | . . . . . . . Retrieved Matter . | . . . . . . . Retrieved Components . | . . . . . . . Parts Scanalyzed . | . . . . . . . Part Schematics Acquired . | . . . . . . . Parts Damaged . | . . . . . . . Bothacking | -11 -10 -9 -8 -7 -7 -7 ------------ Run | Yrd Mat Mat Mat Fac Gar Fac Used RIF Installer . | . . . . . . . Robots Hacked . | . . . . . . . Non-combat . | . . . . . . . Combat . | . . . . . . . Robot Hacks Applied . | . . . . . . . Relay Couplers Released 38 | . . . . . 35 3 Machine Destruction 35 | . . . . . 35 . Programmers 3 | . . . . . . 3 Fabnet Peak Effective % . | . . . . . . . Robots Rewired 6 | . . . . . 6 . Allies Hacked . | . . . . . . . Hacks Repelled . | . . . . . . . Allies | -11 -10 -9 -8 -7 -7 -7 -------- Run | Yrd Mat Mat Mat Fac Gar Fac Total Allies 8 | . . . . . 8 . Largest Group 4 | . . . . . 4 2 Highest-Rated Group 178 | . . . . . 178 157 Highest-Rated Ally 95 | . . . . . 95 95 Total Orders . | . . . . . . . Ally Attacks 79 | . . . . . 56 23 Total Damage 2044 | . . . . . 1540 504 Kills 12 | . . . . . 9 3 Allies Corrupted 2 | . . . . . 1 1 Allies Melted . | . . . . . . . Intel | -11 -10 -9 -8 -7 -7 -7 ------- Run | Yrd Mat Mat Mat Fac Gar Fac Robot Analysis Total 1 | . . . 1 . . . Derelict Logs Recovered . | . . . . . . . Drone Launches . | . . . . . . . Drone Recoveries . | . . . . . . . Exploration | -11 -10 -9 -8 -7 -7 -7 ------------- Run | Yrd Mat Mat Mat Fac Gar Fac Turns Passed 7527 | 113 538 703 773 48 3454 1898 Spaces Moved 2777 | 63 214 248 293 20 1274 665 Core 5 | 2 . . . . . 3 Treads 2336 | 61 206 3 111 20 1274 661 Legs . | . . . . . . . Wheels 435 | . 8 245 182 . . . Hover . | . . . . . . . Flight 1 | . . . . . . 1 Fastest Speed 35 | 50 135 130 175 240 238 35 Average Speed 222 | 156 159 163 209 240 239 241 Slowest Speed 1600 | 160 160 480 480 240 325 1600 Overloaded Moves . | . . . . . . . Propulsion Burnouts . | . . . . . . . Robots Hopped . | . . . . . . . Cave-ins Triggered . | . . . . . . . Exploration Rate (%) 29 | 4 44 26 24 1 91 19 Regions Visited 6 Branch Regions . Pre-discovered Areas . | . . . . . . . Known Exits Taken 1 | . . . . 1 . . Unknown Exits Taken 4 | 1 1 1 1 . . . Scrap Searched . | . . . . . . . Spaces Dug 11 | . . . . . . 11 Terrain Destroyed 233 | . . 3 1 . 160 69 Melee . | . . . . . . . Projectile 24 | . . 3 1 . 1 19 AOE 209 | . . . . . 159 50 Terrain Rammed . | . . . . . . . Walls Destroyed . | . . . . . . . Machines Disabled . | . . . . . . . Actions | -11 -10 -9 -8 -7 -7 -7 --------- Run | Yrd Mat Mat Mat Fac Gar Fac Total 3612 | 75 315 423 412 21 1524 842 Wait 222 | . 23 83 22 . 30 64 Move 2771 | 62 213 247 292 19 1273 665 Hop . | . . . . . . . Pick Up 109 | 7 9 16 27 . 36 14 Fast Attach 24 | 5 1 2 8 . 3 5 Attach 32 | 1 3 7 4 2 10 5 Detach 2 | . . 2 . . . . Swap 26 | . 5 1 3 . 8 9 Drop 82 | . 6 1 26 . 33 16 Fire 302 | . 55 64 30 . 90 63 Melee . | . . . . . . . Ram 1 | . . . . . . 1 Kick . | . . . . . . . Crush . | . . . . . . . Escape Stasis 20 | . . . . . 20 . Rewire 21 | . . . . . 21 . Trap . | . . . . . . . Miscellaneous . | . . . . . . . Route ------- -11/Scrapyard -10/Materials -9/Materials (discovered 2 exits: *Mat / [*Sto]) -8/Materials -7/Factory -7/Garrison (discovered 3 exits: *Fac x3) -7/Factory History --------- Turn | Location | Event 34 | -11/Scrapyard | Discovered new exit (range 15) 114 | -11/Scrapyard | Entered Materials 300 | -10/Materials | Build established: Mutant 625 | -10/Materials | Discovered new exit (range 9) 652 | -10/Materials | Entered another Materials area 652 | -9/Materials | Evolved 2 slots: Utility x2 654 | -9/Materials | Discovered new exit (range 14) 1318 | -9/Materials | Discovered new exit (range 11) 1355 | -9/Materials | Entered another Materials area 1355 | -8/Materials | Evolved 2 slots: Propulsion x1, Utility x1 1369 | -8/Materials | Build established: Scavenger-Mutant 2050 | -8/Materials | Discovered new exit (range 16) 2128 | -8/Materials | Entered Factory 2128 | -7/Factory | Evolved 2 slots: Propulsion x1, Utility x1 2174 | -7/Factory | Identified exit to Garrison 2176 | -7/Factory | Entered Garrison 2508 | -7/Garrison | Triggered checkpoint 2518 | -7/Garrison | Garrison Relay disabled 2770 | -7/Garrison | Triggered checkpoint 3024 | -7/Garrison | Triggered checkpoint 3056 | -7/Garrison | Garrison Relay disabled 3196 | -7/Garrison | Lost 3 parts (1n2u) 3249 | -7/Garrison | Discovered new exit (range 14) 3739 | -7/Garrison | Garrison Relay disabled 3745 | -7/Garrison | Garrison Relay disabled 3747 | -7/Garrison | Garrison Relay disabled 3797 | -7/Garrison | Garrison Relay disabled 3988 | -7/Garrison | Triggered checkpoint 4087 | -7/Garrison | Discovered new exit (range 8) 4106 | -7/Garrison | Triggered checkpoint 4164 | -7/Garrison | Garrison Relay disabled 4280 | -7/Garrison | Phase Generator disabled 4732 | -7/Garrison | Triggered checkpoint 4912 | -7/Garrison | Triggered checkpoint 4963 | -7/Garrison | Garrison Relay disabled 4986 | -7/Garrison | Found embedded Infiltrators 5066 | -7/Garrison | Discovered new exit (range 9) 5407 | -7/Garrison | Spotted B-75 Beast 5424 | -7/Garrison | Allies destroyed B-75 Beast 5424 | -7/Garrison | Garrison Relay disabled 5630 | -7/Garrison | Entered Factory 5630 | -7/Factory | Accompanied by 2 allies 5778 | -7/Factory | Fabricated Hardcell Cannon (x2) 6430 | -7/Factory | First assault squad dispatched 6625 | -7/Factory | System corruption reached 10% 6655 | -7/Factory | Lost 3 parts (1p2u) 7199 | -7/Factory | Build established: Mutant 7491 | -7/Factory | Core integrity fell below 50% 7521 | -7/Factory | Core integrity fell below 20% 7528 | -7/Factory | Destroyed by G-47 Trooper with Particle Gun Last Messages --------------- 07503_ B-48 Gladiator heat short circuits Backup Propulsion III. 07503_ L-41 Fighter knocked back. 07503_ B-48 Gladiator overheating. 07504_ Hardcell Cannon severed. 07505_ B-48 Gladiator heat spikes uncontrollably. 07505_ B-48 Gladiator critical meltdown. 07505_ L-41 Fighter knocked back. 07507_ Critical hit (Burn: +37). 07508_ AS:LMKF6EA##Q 1LA RMY4&#J,TM 07510_ M-13 Machinist repairs L-41 Fighter. 07512_ Mic. Fission Core destroyed. 07516_ Hardcell Cannon destroyed. 07523_ Dropped Huge Storage Unit. 07523_ M-28 Smith repairs M-13 Machinist. 07523_ Slammed into M-28 Smith. 07524_ System corrupted: Energy discharge (-22). 07525_ Acquired Surge Thruster. 07527_ Dropped Lgt. Treads. Map ----- +----------------------------------------------------+ | ?????????????????????????????? ?????????????? | | ??????????????????????????????% ??????????????? | | ????????????????????????????? !#??????????????? | | ????????????????????????????? % #??????????????? | | ???????????????????????????? #???????????????? | | ?????????????############### #???????????????? | | ?????????????# #???????????????? | | ?????????????# #???????????????? | | ?????????????# #???????????????? | | ??????????????? #???????????????? | | ??????????????????? ?????????????????? | | ??????????????????????# #??????????????????????? | | ??????????????????????# #??????????????????????? | | ??????????????????????# ##?????????????????????? | | ??????????????????????# "#?????????????????????? | | ??????????????????????# #??????????????????????? | | ??????????????????????# #??????????????????????? | | ??????????????????????# = #??????????????????????? | | ??????????????????????# #??????????????????????? | | ??????????????????????# !#??#######?????????????? | | ??????????????????????# #? #?????????????? | | ??????????????????????# g #? #?????????????? | | ??????????????????????#=% # #?????????????? | | ??????????????????????# # """"??????????????? | | ??????????????????????# =+ """"??????????????? | | ???????????????########%!@# """"??????????????? | | ???????????????# #mg # """"??????????????? | | ???????????????#" """ #!=l#? #?????????????? | | ???????????????#" """ #!m]#? #?????????????? | | ???????????????#" """ +!*!#??#######?????????????? | | ???????????????#T #^]%#??????????????????????? | | ???????????????#" #!=%#??????????????????????? | | ???????????????#" #]u!#????""????????????????? | | ???????????????#" !!# !=# """"????????????????? | | ???????????????# ! # [# """"????????????????? | | ???????????????# %# / #= """" ??????????????? | | ??????????????# # # ??????????????? | | ??????????????## #% # """" ""?????????????? | | ?????????????### # # """" "??????????????? | | #################### % + """ ???????????????? | | = # """" ???????????????? | | ##### ### % ??????????????? | | #???## # #######?????????????? | | ############+########## # ???????????????????? | | ?????????# # # ??????????????????? | | ?????????# """ """ #%! # ?????????????????? | | ?????????# """ """ # % # """ ?????????????????? | | ?????????# """ """ # % " "????????????????????? | | ?????????# # "%#??????????????????????? | | ?????????# + +??????????????????????? | +----------------------------------------------------+ Best States ------------- Heat Dissipation 41 Energy Generation 16 Energy Capacity 290 Matter Stores 300 Matter Capacity 300 Sight Range 16 Robot Scan Range 15 Terrain Scan Density 10 Armor Coverage 600 Resistance: KI 20 Resistance: EM 20 Core Shielding 20 Evasion (%) 40 Targeting Accuracy 8 Target Analysis 6 Recoil Reduction 4 Energy Filtering 30 Offensive Hacking 10 Item Schematics ----------------- None Robot Schematics ------------------ None Fabricated ------------ Hardcell Cannon | x2 | -7/Factory | Preloaded Alien Tech Used ----------------- None Achievements -------------- None Challenges ------------ None Game ------ Seed InsulationChipCannon Manual? 0 Play Time 00:37:43 Cumulative 81.2 hours Start 2024.10.21 @ 08:50:40 End 2024.10.21 @ 09:29:35 Sessions 1 Manual Loads 0 Difficulty Rogue Special Mode None Game No. 100 Rogue 100 Adventurer 0 Explorer 0 Win Type - Total 0 Types 0/0/0/0/0/0/0/0/0 Lore% 54 Gallery% 45 Achievement% 37 Wizard Run 0 Options --------- Layout 1 ASCII 0 Keyboard 1 Movement Numpad Keybinds 0 Fullscreen 1 Font 24/Smallcaps Map View 50x35 Zoom Use 0% Tactical HUD 1 Map Filters NONE Filters NONE Steam 1 RUN: cb1f8994-85ed-4876-90c2-f097f1fa8556